bitfinex/quotes_SOLUSD_20250721
["timestamp","ask_amount","ask_price","bid_price","bid_amount"]
[1753141532018,6.30755672,196.02,195.95,12.75818564]
[1753141532215,35.8,196.01,195.96,5.58755672]
[1753141532546,35.8,196.01,195.98,5.58755672]
[1753141532919,35.8,196.01,195.97,5.58755672]
[1753141533240,35.82,196.03,195.95,24.73636258]
[1753141533421,35.82,196.03,196.0,5.10204081]
[1753141534113,42.12755672,196.03,196.0,5.10204081]
[1753141534343,35.82,196.03,196.0,5.10204081]
[1753141534526,35.82,196.03,196.0,10.68959753]
[1753141534726,35.82,196.03,196.0,5.10204081]
[1753141534930,35.82,196.03,196.0,10.68959753]
[1753141535737,35.82,196.03,196.0,5.10204081]
[1753141535918,35.82,196.06,196.02,5.58755672]
[1753141537821,35.82,196.06,196.03,10.68881673]
[1753141538129,35.82,196.06,196.04,5.58755672]
[1753141539022,35.82,196.06,196.05,5.1007396]
[1753141540037,0.66,196.15,196.08,26.0]
[1753141540245,0.66,196.15,196.12,5.58755672]
[1753141540246,35.82,196.15,196.12,5.58755672]
[1753141540420,35.82,196.15,196.13,5.58755672]
[1753141540624,0.381739,196.19,196.14,5.58755672]
[1753141540821,35.82,196.18,196.16,5.58755672]
[1753141541044,35.82,196.19,196.18,5.09735956]
[1753141541342,36.48,196.19,196.14,5.0983991]
[1753141541521,36.48,196.19,196.16,5.58755672]
[1753141542216,36.48,196.19,196.17,5.09761941]
[1753141544121,0.66,196.18,196.14,5.0983991]
[1753141544327,0.66,196.18,196.09,5.58755672]
[1753141544328,5.58755672,196.15,196.09,5.58755672]
[1753141544624,35.8,196.14,196.1,5.58755672]
[1753141545031,36.46,196.14,196.09,5.58755672]
[1753141545228,35.8,196.14,196.1,5.58755672]
[1753141545471,35.8,196.14,196.11,5.09917903]
[1753141548729,6.62929572,196.13,196.08,5.0999592]
[1753141548930,0.66,196.12,196.08,31.0999592]
[1753141549142,35.78,196.11,196.08,36.68751592]
[1753141549725,35.78,196.11,196.09,5.58755672]
[1753141550250,35.78,196.15,196.1,5.58755672]
[1753141550434,35.78,196.15,196.14,5.58755672]
[1753141550833,35.78,196.15,196.14,5.0983991]
[1753141552650,36.44,196.15,196.12,5.09891902]
[1753141552833,0.66,196.14,196.11,5.09917903]
[1753141553353,35.78,196.15,196.11,10.68673575]
[1753141553542,36.44,196.15,196.11,10.68673575]
[1753141556332,35.78,196.15,196.11,10.68673575]
[1753141556533,0.66,196.14,196.11,10.68673575]
[1753141557451,35.78,196.15,196.11,10.68673575]
[1753141557648,0.66,196.13,196.11,10.68673575]
[1753141558465,35.78,196.15,196.11,10.68673575]
[1753141558832,0.66,196.14,196.11,10.68673575]
[1753141559055,0.66,196.13,196.11,5.09917903]
[1753141559253,36.161739,196.15,196.11,10.68673575]
[1753141559459,0.66,196.14,196.11,10.68673575]
[1753141560363,36.161739,196.15,196.12,5.58755672]
[1753141560659,35.78,196.15,196.13,5.58755672]
[1753141560957,35.78,196.15,196.11,5.09917903]
[1753141561158,36.44,196.15,196.13,5.58755672]
[1753141561659,0.381739,196.17,196.13,5.58755672]
[1753141561840,88.5,196.19,196.16,5.58755672]
[1753141561841,35.74,196.18,196.16,5.58755672]
[1753141562040,35.74,196.18,196.17,5.58755672]
[1753141562237,1.101739,196.21,196.17,5.58755672]
[1753141562454,0.06,196.21,196.2,5.58755672]
[1753141562766,35.8,196.21,196.2,5.58755672]
[1753141563140,35.8,196.21,196.2,10.68439667]
[1753141566162,0.06,196.21,196.2,10.68439667]
[1753141574885,0.72,196.21,196.2,5.09683995]
[1753141575056,0.72,196.21,196.2,10.68439667]
[1753141576268,0.06,196.21,196.2,10.68439667]
[1753141582597,0.06,196.24,196.2,29.01405328]
[1753141582886,0.06,196.24,196.21,0.50965801]
[1753141583581,0.06,196.24,196.23,5.58755672]
[1753141583779,0.06,196.24,196.23,10.68361746]
[1753141586081,0.06,196.24,196.23,5.09606074]
[1753141586281,0.72,196.24,196.23,10.68361746]
[1753141587397,0.06,196.24,196.23,10.68361746]
[1753141589792,0.72,196.24,196.23,10.68361746]
[1753141590791,16.78468397,196.23,196.15,10.68569589]
[1753141591087,5.58755672,196.21,196.15,23.43104383]
[1753141591288,5.58755672,196.17,196.15,5.09813917]
[1753141591593,0.66,196.16,196.15,5.09813917]
[1753141593084,0.66,196.16,196.13,5.12865905]
[1753141593286,0.66,196.15,196.13,5.12865905]
[1753141594591,5.96929572,196.17,196.13,5.12865905]
[1753141594797,0.66,196.14,196.13,5.12865905]
[1753141595296,0.66,196.14,196.13,0.03]
[1753141598083,0.7,196.16,196.13,0.03]
[1753141598285,6.28755672,196.18,196.13,5.61755672]
[1753141598581,0.7,196.17,196.13,5.61755672]
[1753141599578,5.58755672,196.18,196.14,5.0983991]
[1753141599778,0.7,196.17,196.14,5.0983991]
[1753141599992,0.7,196.16,196.14,5.0983991]
[1753141601874,0.7,196.17,196.14,5.0983991]
[1753141602070,0.7,196.16,196.14,5.0983991]
[1753141603085,0.7,196.16,196.13,5.12865905]
[1753141603474,0.7,196.15,196.13,5.12865905]
[1753141604291,0.7,196.15,196.13,5.61755672]
[1753141604481,0.7,196.17,196.13,5.61755672]
[1753141604797,0.7,196.16,196.13,5.61755672]
[1753141605691,0.7,196.15,196.14,5.0983991]
[1753141606203,5.58755672,196.18,196.14,5.0983991]
[1753141606392,0.7,196.17,196.14,5.0983991]
[1753141606695,0.7,196.16,196.14,5.0983991]
[1753141608481,0.7,196.15,196.14,5.0983991]
[1753141612507,0.7,196.17,196.14,5.0983991]
[1753141612808,0.7,196.16,196.14,5.0983991]
[1753141616407,0.7,196.15,196.14,5.1283991]
[1753141617295,0.7,196.15,196.14,0.03]
[1753141619108,0.7,196.17,196.14,0.03]
[1753141619808,1.081739,196.17,196.14,0.03]
[1753141620296,0.7,196.16,196.14,0.03]
[1753141620811,6.28755672,196.16,196.14,0.03]
[1753141621194,0.7,196.15,196.14,0.03]
[1753141626396,6.28755672,196.15,196.14,0.03]
[1753141626609,23.45397969,196.15,196.14,0.03]
[1753141626813,17.86642297,196.15,196.14,0.03]
[1753141627007,23.45397969,196.15,196.14,0.03]
[1753141627395,59.03397969,196.15,196.14,0.03]
[1753141628036,41.16755672,196.18,196.14,0.03]
[1753141628220,0.72,196.17,196.14,0.03]
[1753141628514,0.72,196.2,196.16,5.58755672]
[1753141628699,0.06,196.21,196.17,5.58755672]
[1753141628902,0.72,196.19,196.17,5.58755672]
[1753141629900,0.72,196.19,196.18,5.09735956]
[1753141630106,0.06,196.21,196.18,10.68491628]
[1753141630414,0.06,196.21,196.19,5.58755672]
[1753141630603,0.72,196.2,196.18,10.68491628]
[1753141630805,0.72,196.2,196.18,5.09735956]
[1753141631007,0.06,196.21,196.18,5.09735956]
[1753141631207,0.72,196.19,196.18,5.09735956]
[1753141631805,0.78,196.21,196.18,10.68491628]
[1753141632718,0.72,196.2,196.18,10.68491628]
[1753141633228,0.06,196.21,196.19,5.58755672]
[1753141633413,0.06,196.21,196.18,5.60709551]
[1753141633414,0.06,196.21,196.2,5.58755672]
[1753141633940,0.78,196.21,196.2,5.58755672]
[1753141634430,0.06,196.21,196.2,5.58755672]
[1753141634602,0.78,196.21,196.18,10.68491628]
[1753141634803,0.72,196.2,196.18,10.68491628]
[1753141635109,0.06,196.21,196.19,5.58755672]
[1753141635715,0.06,196.21,196.2,5.58755672]
[1753141636520,0.06,196.21,196.19,5.58755672]
[1753141636713,0.06,196.21,196.2,5.09683995]
[1753141637933,0.06,196.21,196.2,10.68439667]
[1753141639219,0.06,196.24,196.2,23.42649656]
[1753141639423,0.06,196.24,196.23,5.58755672]
[1753141640921,0.06,196.24,196.23,10.68361746]
[1753141644114,1e-08,196.24,196.23,5.58755672]
[1753141644429,1e-08,196.24,196.23,6.09716279]
[1753141644999,1e-08,196.24,196.23,11.19322353]
[1753141648928,1e-08,196.24,196.23,46.75322353]
[1753141651726,1e-08,196.24,196.23,41.16566681]
[1753141651939,1e-08,196.24,196.23,46.75322353]
[1753141653720,1e-08,196.25,196.24,31.58755672]
[1753141653912,1e-08,196.25,196.24,5.58755672]
[1753141654122,0.06,196.32,196.26,26.0]
[1753141654327,0.06,196.32,196.31,5.58755672]
[1753141655713,0.78,196.32,196.31,10.68154072]
[1753141656509,0.06,196.32,196.31,10.68154072]
[1753141660125,0.73,196.32,196.31,5.093984]
[1753141661614,0.73,196.32,196.29,5.09450303]
[1753141662138,5.58755672,196.31,196.29,5.09450303]
[1753141662336,0.67,196.3,196.29,5.09450303]
[1753141662535,6.25755672,196.3,196.25,12.73854754]
[1753141662735,5.58755672,196.27,196.26,5.09528176]
[1753141662935,6.25755672,196.27,196.26,5.09528176]
[1753141663719,6.25755672,196.27,196.25,12.73854754]
[1753141663928,6.25755672,196.26,196.23,17.8662126]
[1753141664126,0.67,196.25,196.23,17.8662126]
[1753141665842,0.67,196.24,196.23,0.03]
[1753141666544,0.67,196.26,196.23,0.03]
[1753141666737,6.25755672,196.26,196.23,0.03]
[1753141666922,0.67,196.25,196.23,0.03]
[1753141667625,6.25755672,196.25,196.23,0.03]
[1753141668031,0.67,196.24,196.23,0.03]
[1753141670038,6.25755672,196.24,196.23,0.03]
[1753141674857,0.67,196.26,196.23,0.03]
[1753141675038,0.67,196.26,196.23,5.61755672]
[1753141675563,0.67,196.28,196.24,5.58755672]
[1753141675956,35.56,196.3,196.26,5.58755672]
[1753141676254,36.23,196.3,196.27,5.58755672]
[1753141676662,0.67,196.29,196.27,5.58755672]
[1753141676854,0.67,196.29,196.28,5.09476258]
[1753141678458,0.06,196.32,196.28,5.09476258]
[1753141678759,0.67,196.31,196.28,5.09476258]
[1753141678959,0.06,196.32,196.28,5.09476258]
[1753141679161,0.67,196.31,196.28,10.6823193]
[1753141680990,0.67,196.3,196.28,10.6823193]
[1753141681288,0.73,196.32,196.28,10.6823193]
[1753141681492,0.67,196.31,196.28,10.6823193]
[1753141681671,0.67,196.3,196.28,5.09476258]
[1753141682893,0.06,196.31,196.28,5.09476258]
[1753141683077,0.67,196.29,196.28,5.09476258]
[1753141684095,0.73,196.31,196.28,5.09476258]
[1753141684469,0.67,196.3,196.28,5.09476258]
[1753141684766,5.96929572,196.29,196.24,5.09580105]
[1753141685083,0.67,196.28,196.24,5.09580105]
[1753141685292,0.67,196.28,196.24,23.42286041]
[1753141685472,0.67,196.27,196.24,17.83530369]
[1753141687291,0.67,196.26,196.24,17.83530369]
[1753141687793,0.67,196.28,196.24,17.83530369]
[1753141688175,0.7,196.27,196.24,17.83530369]
[1753141688377,0.7,196.26,196.24,5.09580105]
[1753141688688,0.7,196.25,196.24,5.09580105]
[1753141690593,0.7,196.25,196.23,0.03]
[1753141690785,0.7,196.25,196.23,5.12606074]
[1753141691098,0.7,196.25,196.23,10.71361746]
[1753141691279,0.7,196.27,196.23,10.71361746]
[1753141691680,0.7,196.27,196.23,5.12606074]
[1753141691978,0.7,196.27,196.23,10.71361746]
[1753141693500,0.7,196.26,196.23,5.12606074]
[1753141693691,0.7,196.25,196.23,5.12606074]
[1753141694201,0.7,196.27,196.23,10.71361746]
[1753141694397,0.7,196.27,196.23,23.45376932]
[1753141694898,0.7,196.26,196.23,23.45376932]
[1753141695106,5.58755672,196.28,196.23,23.45376932]
[1753141695305,0.7,196.25,196.23,23.45376932]
[1753141697404,0.7,196.25,196.23,17.8662126]
[1753141698903,0.7,196.25,196.23,23.45376932]
[1753141699103,0.7,196.27,196.23,23.45376932]
[1753141699602,0.7,196.26,196.23,23.45376932]
[1753141699986,0.7,196.25,196.23,23.45376932]
[1753141702106,5.58755672,196.24,196.23,0.03]
[1753141702287,5.96929572,196.24,196.23,0.03]
[1753141702493,6.66929572,196.24,196.19,0.03]
[1753141702693,0.7,196.23,196.19,5.12704872]
[1753141702892,5.58755672,196.2,196.19,5.12704872]
[1753141703202,6.28755672,196.2,196.19,5.12704872]
[1753141703599,6.28755672,196.2,196.19,0.03]
[1753141706820,0.7,196.23,196.19,5.61755672]
[1753141707007,0.7,196.25,196.19,0.06]
[1753141707204,0.7,196.25,196.21,5.58755672]
[1753141707610,6.28755672,196.25,196.19,41.17755672]
[1753141707916,6.28755672,196.24,196.19,35.59]
[1753141708207,0.7,196.23,196.19,35.59]
[1753141708508,0.7,196.23,196.19,5.61755672]
[1753141708706,0.7,196.23,196.19,17.86984912]
[1753141709010,0.7,196.25,196.2,5.61755672]
[1753141709213,6.28755672,196.25,196.2,0.03]
[1753141709397,6.28755672,196.25,196.2,5.58755672]
[1753141709815,0.7,196.24,196.19,17.86984912]
[1753141710111,6.28755672,196.24,196.19,23.45740584]
[1753141710310,0.7,196.23,196.19,23.45740584]
[1753141710511,0.7,196.22,196.19,23.45740584]
[1753141711301,6.28755672,196.24,196.19,23.45740584]
[1753141711504,5.58755672,196.24,196.19,23.45740584]
[1753141711707,0.7,196.24,196.19,23.48740584]
[1753141712707,6.28755672,196.26,196.2,5.61755672]
[1753141713015,0.7,196.26,196.22,5.58755672]
[1753141713405,0.7,196.26,196.23,5.09606074]
[1753141714714,0.7,196.25,196.23,5.09606074]
[1753141715516,0.7,196.25,196.21,12.74095614]
[1753141716311,5.58755672,196.26,196.21,12.74095614]
[1753141716619,0.7,196.25,196.21,12.74095614]
[1753141716829,0.7,196.25,196.21,23.42509305]
[1753141717123,6.28755672,196.27,196.22,5.58755672]
[1753141717312,5.58755672,196.27,196.22,5.58755672]
[1753141717610,0.7,196.26,196.21,23.42509305]
[1753141717921,0.7,196.25,196.21,23.42509305]
[1753141718335,5.58755672,196.27,196.21,23.42509305]
[1753141718639,0.71,196.26,196.21,23.45509305]
[1753141719330,5.58755672,196.27,196.21,23.42509305]
[1753141719536,0.71,196.25,196.21,23.42509305]
[1753141719742,0.71,196.24,196.21,17.83753633]
[1753141720737,0.71,196.23,196.21,17.83753633]
[1753141722035,0.71,196.25,196.21,17.83753633]
[1753141722527,0.71,196.25,196.21,23.42509305]
[1753141724142,0.71,196.25,196.21,12.74095614]
[1753141724339,0.71,196.25,196.21,18.32851286]
[1753141724536,5.58755672,196.26,196.21,18.32851286]
[1753141724727,0.71,196.24,196.21,18.32851286]
[1753141724918,6.29755672,196.26,196.21,18.32851286]
[1753141725123,0.71,196.25,196.21,18.32851286]
[1753141725638,0.77,196.25,196.21,18.32851286]
[1753141725948,0.06,196.25,196.21,18.35851286]
[1753141726127,0.06,196.25,196.21,12.77095614]
[1753141726322,0.06,196.25,196.21,17.86753633]
[1753141726534,0.06,196.29,196.24,5.58755672]
[1753141726851,0.06,196.31,196.28,5.58755672]
[1753141727143,0.06,196.31,196.3,5.58755672]
[1753141727719,0.06,196.31,196.3,5.61755672]
[1753141727923,0.06,196.31,196.3,5.58755672]
[1753141728536,0.06,196.31,196.3,10.68180022]
[1753141728940,0.06,196.31,196.3,10.71180022]
[1753141729648,1e-08,196.31,196.3,10.71180022]
[1753141730234,1e-08,196.32,196.3,36.71180022]
[1753141730452,1e-08,196.32,196.31,6.12695512]
[1753141730933,1e-08,196.33,196.31,6.12695512]
[1753141731130,1e-08,196.33,196.32,67.15755672]
[1753141732351,1e-08,196.33,196.32,72.25128125]
[1753141739547,1e-08,196.36,196.32,84.98559257]
[1753141739863,1e-08,196.36,196.35,5.58755672]
[1753141740074,1e-08,196.36,196.35,41.10755672]
[1753141740440,1e-08,196.36,196.35,41.64685134]
[1753141740644,0.06,196.39,196.38,5.58755672]
[1753141740849,0.06,196.39,196.38,6.09677354]
[1753141741049,0.06,196.39,196.38,32.09677354]
[1753141741756,0.06,196.39,196.38,37.18894178]
[1753141742748,0.06,196.39,196.38,31.60138506]
[1753141742952,0.06,196.39,196.38,37.18894178]
[1753141744747,0.06,196.39,196.38,31.60138506]
[1753141744943,0.06,196.39,196.38,37.18894178]
[1753141747367,1e-08,196.4,196.39,5.58755672]
[1753141747567,1e-08,196.4,196.39,41.10755672]
[1753141748577,1e-08,196.41,196.39,41.13755672]
[1753141748762,1e-08,196.41,196.4,11.18837137]
[1753141754971,1e-08,196.41,196.4,11.21837137]
[1753141755983,1e-08,196.41,196.4,11.18837137]
[1753141757498,0.71000001,196.41,196.4,5.09164969]
[1753141757865,1e-08,196.41,196.4,11.18837137]
[1753141759000,1e-08,196.41,196.4,11.21837137]
[1753141759677,1e-08,196.41,196.4,11.18837137]
[1753141760195,0.1,196.44,196.42,26.0]
[1753141760374,0.06,196.47,196.43,41.59664392]
[1753141760575,0.06,196.47,196.46,5.58755672]
[1753141761096,0.06,196.47,196.46,6.09656618]
[1753141761294,0.77,196.47,196.46,6.09656618]
[1753141761909,6.35755672,196.47,196.4,17.82077392]
[1753141762095,5.58755672,196.42,196.4,17.82077392]
[1753141762499,0.71,196.41,196.4,5.09164969]
[1753141764435,26.06,196.47,196.39,23.91842895]
[1753141764719,0.21,196.44,196.4,5.58755672]
[1753141765229,0.21,196.44,196.39,79.83087223]
[1753141765523,5.58755672,196.45,196.4,5.58755672]
[1753141766021,5.58755672,196.45,196.39,85.41842895]
[1753141766785,0.71,196.44,196.39,85.41842895]
[1753141766987,0.71,196.43,196.39,85.41842895]
[1753141767199,0.71,196.42,196.41,26.0]
[1753141767693,6.29755672,196.42,196.39,17.82168134]
[1753141768007,0.441739,196.47,196.39,17.82168134]
[1753141768008,0.71,196.41,196.39,17.82168134]
[1753141768307,5.58755672,196.43,196.39,17.82168134]
[1753141768500,0.71,196.4,196.39,17.82168134]
[1753141769110,0.71,196.4,196.39,5.09190895]
[1753141769291,6.29755672,196.4,196.39,5.09190895]
[1753141770125,6.29755672,196.4,196.39,5.12190895]
[1753141770495,6.29755672,196.4,196.39,0.03]
[1753141770915,0.71,196.4,196.39,0.03]
[1753141771124,6.29755672,196.4,196.39,0.03]
[1753141785769,0.71,196.4,196.39,0.03]
[1753141785961,6.29755672,196.4,196.39,0.03]
[1753141787948,6.67929572,196.4,196.39,0.03]
[1753141790070,21.87685221,196.38,196.37,0.03]
[1753141790365,22.75397969,196.38,196.37,0.03]
[1753141790553,23.42397969,196.38,196.37,0.03]
[1753141792546,0.67,196.4,196.37,0.03]
[1753141793051,5.58755672,196.4,196.37,0.03]
[1753141793362,0.67,196.39,196.37,0.03]
[1753141793874,5.58755672,196.4,196.37,0.03]
[1753141794165,6.25755672,196.41,196.37,0.03]
[1753141795154,0.67,196.4,196.37,5.61755672]
[1753141795868,0.381739,196.42,196.37,5.61755672]
[1753141796070,0.381739,196.42,196.38,5.09216824]
[1753141796250,36.23,196.44,196.41,5.58755672]
[1753141797063,35.56,196.44,196.43,5.58755672]
[1753141797454,0.06,196.44,196.43,5.58755672]
[1753141798159,0.06,196.44,196.43,10.67842878]
[1753141799176,0.73,196.44,196.43,5.09087206]
[1753141800173,0.73,196.44,196.42,5.09113124]
[1753141800555,0.06,196.44,196.43,5.58755672]
[1753141800962,0.06,196.45,196.43,6.62664392]
[1753141800963,1e-08,196.45,196.43,6.62664392]
[1753141801171,1e-08,196.45,196.44,6.11755672]
[1753141802490,1e-08,196.45,196.44,11.20816962]
[1753141802654,1e-08,196.45,196.44,11.71723091]
[1753141803759,1e-08,196.45,196.44,11.20816962]
[1753141803960,1e-08,196.45,196.44,10.67816962]
[1753141816793,1e-08,196.45,196.44,11.20816962]
[1753141817287,1e-08,196.45,196.44,10.67816962]
[1753141818074,1e-08,196.45,196.44,11.20816962]
[1753141818395,1e-08,196.45,196.44,11.71723091]
[1753141821401,1e-08,196.45,196.44,11.18723091]
[1753141822290,1e-08,196.45,196.44,11.71723091]
[1753141823389,1e-08,196.45,196.44,11.18723091]
[1753141824093,1e-08,196.45,196.44,11.71723091]
[1753141825494,1e-08,196.45,196.44,11.18723091]
[1753141827603,1e-08,196.45,196.44,11.71723091]
[1753141828388,1e-08,196.45,196.44,11.18723091]
[1753141829190,0.72000001,196.45,196.44,5.0906129]
[1753141829704,0.72000001,196.45,196.44,10.67816962]
[1753141830081,1e-08,196.45,196.44,10.67816962]
[1753141832104,0.72000001,196.45,196.44,10.67816962]
[1753141832406,1e-08,196.45,196.44,10.67816962]
[1753141835007,1e-08,196.45,196.44,11.71723091]
[1753141835804,1e-08,196.45,196.44,11.74723091]
[1753141838801,1e-08,196.45,196.44,47.20723091]
[1753141838995,1e-08,196.45,196.44,46.16816962]
[1753141839426,1e-08,196.45,196.44,46.67723091]
[1753141840531,1e-08,196.45,196.44,47.20723091]
[1753141842602,1e-08,196.47,196.46,26.0]
[1753141842808,1e-08,196.47,196.46,67.55656618]
[1753141842995,1e-08,196.47,196.46,68.08656618]
[1753141844803,1e-08,196.47,196.46,73.17666085]
[1753141845496,1e-08,196.47,196.46,37.71666085]
[1753141845701,1e-08,196.47,196.46,73.17666085]
[1753141847830,1e-08,196.47,196.46,72.64666085]
[1753141848123,0.67000001,196.47,196.46,0.50900946]
[1753141848324,6.25755673,196.47,196.44,5.12042606]
[1753141848518,5.58755672,196.45,196.44,5.12042606]
[1753141848906,6.25755672,196.45,196.44,5.12042606]
[1753141849105,0.67,196.45,196.44,0.03]
[1753141850005,0.67000001,196.47,196.44,0.03]
[1753141850511,0.67000001,196.47,196.44,5.61755672]
[1753141850827,0.67,196.46,196.44,5.61755672]
[1753141851009,1e-08,196.47,196.45,5.09035377]
[1753141851203,0.67000001,196.47,196.45,5.09035377]
[1753141851399,0.67000001,196.47,196.45,11.18694586]
[1753141853609,0.67,196.46,196.45,5.09035377]
[1753141855927,0.67,196.46,196.44,5.1206129]
[1753141856115,1e-08,196.47,196.44,5.1206129]
[1753141856318,0.67,196.46,196.44,5.1206129]
[1753141857634,0.67,196.45,196.44,5.1206129]
[1753141858826,6.25755672,196.45,196.44,0.03]
[1753141860512,6.63929572,196.45,196.44,0.03]
[1753141862434,28.51433346,196.45,196.44,0.03]
[1753141864127,23.42397969,196.45,196.44,0.03]
[1753141864440,28.51433346,196.45,196.44,0.03]
[1753141866527,23.42397969,196.45,196.44,0.03]
[1753141867039,58.88397969,196.45,196.44,0.03]
[1753141869459,63.97433346,196.45,196.44,0.03]
[1753141869755,42.78468397,196.41,196.4,0.03]
[1753141869962,16.78468397,196.4,196.37,0.03]
[1753141870133,22.37224069,196.38,196.33,5.12346107]
[1753141870334,5.58755672,196.36,196.33,0.03]
[1753141870755,6.26755672,196.36,196.33,0.03]
[1753141873166,23.05224069,196.36,196.33,0.03]
[1753141876444,6.26755672,196.36,196.33,0.03]
[1753141876646,41.72755672,196.36,196.33,0.03]
[1753141880157,42.10929572,196.36,196.33,0.03]
[1753141880560,58.89397969,196.36,196.33,0.03]
[1753141884276,63.98666659,196.36,196.33,0.03]
[1753141887658,63.98666659,196.36,196.31,0.03]
[1753141887659,53.95979741,196.32,196.31,0.03]
[1753141887853,89.82153641,196.32,196.31,0.03]
[1753141888058,90.50153641,196.32,196.31,0.03]
[1753141888855,16.78468397,196.31,196.29,0.03]
[1753141889056,47.03685244,196.3,196.29,0.03]
[1753141889252,47.71685244,196.3,196.29,0.03]
[1753141891882,50.2571077,196.3,196.29,0.03]
[1753141895770,44.66955098,196.3,196.29,0.03]
[1753141896589,72.13603517,196.3,196.29,0.03]
[1753141896781,22.37224069,196.25,196.24,0.2]
[1753141896986,58.23397969,196.25,196.24,0.2]
[1753141897388,58.91397969,196.25,196.24,0.2]
[1753141897569,64.00952109,196.25,196.24,0.2]
[1753141898496,64.00952109,196.25,196.19,0.03]
[1753141898698,5.58755672,196.2,196.19,0.03]
[1753141898888,41.06755672,196.2,196.19,0.03]
[1753141899900,46.87439667,196.2,196.19,0.03]
[1753141900203,69.24663736,196.2,196.19,0.03]
[1753141903291,16.78468397,196.18,196.14,0.03]
[1753141903483,42.78468397,196.12,196.11,0.03]
[1753141903687,16.78468397,196.07,196.02,0.65]
[1753141903883,5.58755672,196.03,196.01,5.1015978]
[1753141904102,5.58755672,196.03,196.02,0.65]
[1753141904373,41.06755672,196.04,196.0,12.82099759]
[1753141904602,5.58755672,196.01,196.0,7.719]
[1753141905097,35.48,196.02,196.0,13.47102263]
[1753141905289,35.48,196.02,196.01,0.65]
[1753141905804,41.06755672,196.02,196.0,7.719]
[1753141906024,41.06755672,196.02,196.0,8.369]
[1753141906193,41.06755672,196.02,196.0,7.719]
[1753141906395,41.06755672,196.02,196.0,8.369]
[1753141906618,41.06755672,196.02,196.0,13.47095351]
[1753141907812,5.58755672,196.01,195.99,5.30226085]
[1753141908295,35.5,196.0,195.99,5.30226085]
[1753141909902,35.5,196.0,195.99,5.95226085]
[1753141910109,35.5,196.02,195.99,5.95226085]
[1753141910308,35.5,196.02,196.0,0.65]
[1753141910597,35.5,196.02,196.01,0.65]
[1753141911000,35.5,196.02,195.99,5.30226085]
[1753141911202,35.5,196.02,196.01,0.65]
[1753141911809,41.08755672,196.03,196.01,0.65]
[1753141912001,41.08755672,196.03,196.01,5.75152453]
[1753141912206,35.5,196.03,196.01,5.75152453]
[1753141912398,35.5,196.03,196.02,0.65]
[1753141912724,41.08755672,196.05,196.02,0.65]
[1753141912933,5.58755672,196.07,196.02,0.65]
[1753141913116,35.5,196.06,196.02,0.65]
[1753141914008,35.5,196.06,196.03,5.10126001]
[1753141914195,35.5,196.06,196.04,0.65]
[1753141914527,5.58755672,196.06,196.03,5.10126001]
[1753141914702,5.58755672,196.06,196.03,5.75126001]
[1753141918900,5.58755672,196.06,196.03,5.10126001]
[1753141919932,5.58755672,196.06,196.01,18.99200802]
[1753141919933,5.58755672,196.04,196.02,5.10152025]
[1753141920242,6.67929572,196.03,195.99,0.2]
[1753141920409,5.58755672,196.02,195.99,0.2]
[1753141920606,5.58755672,196.02,195.99,0.85]
[1753141921020,5.58755672,196.02,196.0,5.10204081]
[1753141922232,5.58755672,196.07,196.01,6.23755672]
[1753141922439,67.48929572,196.08,196.03,5.58755672]
[1753141922618,42.19929572,196.08,196.03,0.65]
[1753141924016,42.19929572,196.08,196.04,5.10099979]
[1753141924539,0.71,196.07,196.04,5.10099979]
[1753141924925,41.48929572,196.08,196.04,5.10099979]
[1753141925329,42.19929572,196.08,196.04,5.10099979]
[1753141925638,5.58755672,196.07,196.03,5.10126001]
[1753141925938,41.48929572,196.08,196.04,0.65]
[1753141926146,35.52,196.08,196.05,0.65]